bitfinex/quotes_ETHUSD_20240610
["timestamp","ask_amount","ask_price","bid_price","bid_amount"]
[1718020494814,1.62128929,3673.2,3673.1,0.25701771]
[1718020501359,0.1345198,3673.2,3673.1,0.25701771]
[1718020501565,0.8,3673.2,3673.1,2.62091771]
[1718020501724,0.93409573,3673.2,3673.1,2.62091771]
[1718020501927,0.93409573,3673.2,3673.1,0.25701771]
[1718020502864,0.13409573,3673.2,3673.1,0.25701771]
[1718020503050,0.8,3673.2,3673.1,0.25701771]
[1718020503253,0.93203661,3673.2,3673.1,0.25701771]
[1718020510875,1.54728727,3673.2,3673.1,0.25701771]
[1718020511068,0.93203661,3673.2,3673.1,0.25701771]
[1718020513051,12.13203661,3673.2,3673.1,0.25701771]
[1718020513251,2.72256,3673.1,3672.4,5.20099]
[1718020513561,0.8,3672.5,3672.4,5.20099]
[1718020513945,0.92952699,3672.5,3672.4,5.20099]
[1718020516283,0.92952699,3672.5,3672.4,2.72299]
[1718020533499,0.12952699,3672.5,3672.4,5.16669]
[1718020533924,0.8,3672.9,3672.4,5.16669]
[1718020534216,0.8,3672.7,3672.4,5.16669]
[1718020534790,0.12943252,3672.6,3672.4,5.16669]
[1718020535342,0.12943252,3672.6,3672.4,2.72299]
[1718020535483,0.12943252,3672.6,3672.5,2.4924]
[1718020535684,8.1627,3673.2,3673.0,2.72255]
[1718020535987,8.1627,3673.2,3673.1,2.4924]
[1718020550409,8.1627,3673.2,3673.0,2.72255]
[1718020554938,8.1627,3673.2,3673.0,5.01795]
[1718020558208,8.1627,3673.2,3673.0,7.7405]
[1718020562356,8.1627,3673.2,3673.0,5.01795]
[1718020562554,8.1627,3673.2,3673.0,2.72255]
[1718020582798,0.12546404,3673.1,3673.0,2.72255]
[1718020585480,8.1627,3673.2,3673.0,2.72255]
[1718020588270,0.12546404,3673.1,3673.0,2.72255]
[1718020595619,8.1627,3673.2,3673.0,2.72255]
[1718020603353,8.1627,3673.2,3673.1,2.2507]
[1718020615023,8.1627,3673.2,3673.0,2.72255]
[1718020620065,8.1627,3673.2,3673.1,2.4581]
[1718020621139,8.1627,3673.2,3673.1,2.45655041]
[1718020623160,8.1627,3673.2,3673.1,3.30766993]
[1718020626267,8.1627,3673.2,3673.1,2.45655041]
[1718020628179,8.1627,3673.2,3673.1,3.30766993]
[1718020628482,8.1627,3673.2,3673.1,3.59137644]
[1718020628845,8.1627,3673.2,3673.1,2.45655041]
[1718020629176,8.1627,3673.2,3673.1,3.59867887]
[1718020629545,8.1627,3673.2,3673.1,2.45655041]
[1718020630341,8.1627,3673.2,3673.1,3.59827951]
[1718020632674,8.1627,3673.2,3673.1,6.59827951]
[1718020633064,2.3231,3674.2,3673.4,2.72225]
[1718020633266,2.3231,3674.2,3674.1,2.72175]
[1718020633471,2.63541,3674.2,3674.1,2.72175]
[1718020642897,3.43541,3674.2,3674.1,2.72175]
[1718020647302,3.55709863,3674.2,3674.1,2.72175]
[1718020659635,2.75709863,3674.2,3674.1,2.72175]
[1718020662980,2.75709863,3674.2,3673.9,2.72189]
[1718020663205,0.8,3674.1,3673.9,2.72189]
[1718020663400,0.12203642,3674.0,3673.9,2.72189]
[1718020665620,0.12203642,3674.0,3673.6,2.72206]
[1718020665933,0.8,3673.8,3673.6,2.72206]
[1718020667008,3.0956,3673.8,3673.6,2.72206]
[1718020669643,0.8,3673.8,3673.6,2.72206]
[1718020669799,5.05369,3674.2,3673.6,2.72206]
[1718020670001,0.8,3673.9,3673.6,2.72206]
[1718020670201,0.8,3673.7,3673.6,2.72206]
[1718020670645,3.2036,3673.9,3673.6,2.72206]
[1718020671804,0.8,3673.9,3673.6,2.72206]
[1718020672738,0.8,3674.1,3673.6,2.72206]
[1718020677407,0.12206806,3674.0,3673.6,2.72206]
[1718020677711,2.72161,3674.3,3673.8,2.72197]
[1718020677915,0.8,3674.2,3673.8,2.72197]
[1718020678133,0.8,3674.0,3673.8,2.72197]
[1718020678714,0.12206806,3673.9,3673.8,2.72197]
[1718020686441,0.12206806,3673.9,3673.8,5.44394]
[1718020686820,0.8,3674.9,3674.4,2.72147]
[1718020687017,0.47413317,3674.8,3674.4,2.72147]
[1718020687832,1.27413317,3674.8,3674.4,2.72147]
[1718020688340,0.92203117,3674.8,3674.4,2.72147]
[1718020690453,0.12203117,3674.8,3674.6,2.72136]
[1718020690853,0.8,3675.4,3675.0,2.72102]
[1718020691222,0.12231563,3675.3,3675.0,2.72102]
[1718020692177,0.8,3675.6,3675.3,2.72081]
[1718020692321,1.10643,3675.6,3675.3,2.72081]
[1718020692741,0.30643,3675.6,3675.3,2.72081]
[1718020692938,2.2924,3676.1,3675.3,2.72081]
[1718020693159,0.8,3675.7,3675.3,2.72081]
[1718020693371,2.72021,3676.2,3675.5,2.72068]
[1718020693530,0.8,3675.9,3675.5,2.72068]
[1718020694220,0.8,3675.9,3675.5,5.03468]
[1718020695532,2.71977,3676.8,3675.5,3.114]
[1718020695741,0.8,3676.5,3675.5,3.114]
[1718020697558,2.71977,3676.8,3675.9,2.72034]
[1718020698261,0.8,3676.4,3675.9,2.72034]
[1718020698864,2.71977,3676.8,3675.9,2.72034]
[1718020699065,0.8,3676.4,3675.9,2.72034]
[1718020700572,0.8,3676.2,3675.9,2.72034]
[1718020700941,0.12280537,3676.1,3675.9,2.72034]
[1718020703637,0.8,3676.1,3675.9,2.72034]
[1718020704078,0.12280537,3676.0,3675.9,2.72034]
[1718020705637,0.8,3676.0,3675.9,2.72034]
[1718020705965,0.92280537,3676.0,3675.9,2.72034]
[1718020706575,0.12280537,3676.0,3675.9,2.72034]
[1718020724203,0.12428493,3676.0,3675.9,2.72034]
[1718020727602,0.8,3676.3,3675.9,2.72034]
[1718020727795,0.12261826,3676.0,3675.9,2.72034]
[1718020728000,0.8,3676.3,3676.0,2.72027]
[1718020728316,2.2596,3676.5,3676.0,2.72027]
[1718020728317,0.8,3676.1,3676.0,2.72027]
[1718020734185,0.92261826,3676.1,3676.0,2.72027]
[1718020735338,0.12261826,3676.1,3676.0,2.72027]
[1718020735639,0.8,3676.3,3676.0,2.72027]
[1718020735782,0.12261826,3676.1,3676.0,2.72027]
[1718020735983,0.8,3676.1,3676.0,2.72027]
[1718020736214,0.92261826,3676.1,3676.0,2.72027]
[1718020738103,0.92261826,3676.1,3675.5,9.594]
[1718020738104,0.92261826,3676.1,3675.7,2.7205]
[1718020738719,0.8,3675.9,3675.7,2.7205]
[1718020739522,0.12266036,3675.8,3675.7,2.7205]
[1718020740425,0.12266036,3675.8,3675.5,7.28]
[1718020740595,0.8,3675.6,3675.1,2.72096]
[1718020740795,0.8,3675.3,3675.1,2.72096]
[1718020751142,0.12228139,3675.2,3675.1,2.72096]
[1718020751370,0.8,3675.3,3675.1,2.72096]
[1718020751676,0.12228139,3675.2,3675.1,2.72096]
[1718020752383,0.8,3675.3,3675.1,2.72096]
[1718020752590,0.8,3675.3,3674.8,2.4858]
[1718020752591,0.12224982,3675.2,3674.8,2.72117]
[1718020752880,0.8,3674.9,3674.8,2.72117]
[1718020753677,0.92224982,3674.9,3674.8,2.72117]
[1718020755253,0.92224982,3674.9,3674.4,2.72152]
[1718020755454,0.8,3674.6,3674.4,2.72152]
[1718020756790,0.12211819,3674.5,3674.4,2.72152]
[1718020757785,0.8,3674.6,3674.4,2.72152]
[1718020758348,0.12211819,3674.5,3674.4,2.72152]
[1718020761110,0.12211819,3674.5,3674.1,2.72169]
[1718020761423,0.8,3674.3,3674.1,2.72169]
[1718020763908,2.3462,3674.8,3674.3,2.72157]
[1718020764082,0.8,3674.4,3674.3,2.72157]
[1718020764603,0.92142324,3674.4,3674.3,2.72157]
[1718020766203,0.12142324,3674.4,3674.3,2.72157]
[1718020766410,0.8,3674.4,3674.3,2.72157]
[1718020766613,0.92142324,3674.4,3674.3,2.72157]
[1718020769425,0.12142324,3674.4,3674.3,2.72157]
[1718020769631,0.8,3674.6,3674.3,2.72157]
[1718020769922,0.12141798,3674.4,3674.3,2.72157]
[1718020770076,0.8,3674.6,3674.3,2.72157]
[1718020770281,0.12141798,3674.4,3674.3,2.72157]
[1718020770505,0.8,3674.6,3674.3,2.72157]
[1718020770702,0.12141798,3674.4,3674.3,2.72157]
[1718020770909,0.8,3674.6,3674.3,2.72157]
[1718020771394,0.12141798,3674.5,3674.3,2.72157]
[1718020773789,0.8,3674.6,3674.3,2.72157]
[1718020774123,0.12143904,3674.4,3674.3,2.72157]
[1718020774609,0.8,3674.6,3674.3,2.72157]
[1718020774809,0.12143904,3674.4,3674.3,2.72157]
[1718020774989,0.8,3674.7,3674.6,2.72138]
[1718020778391,2.3804,3675.1,3674.7,2.72123]
[1718020778738,2.3237,3675.4,3674.9,2.72115]
[1718020778899,0.12136532,3675.0,3674.9,2.72115]
[1718020779106,0.8,3675.1,3674.9,2.72115]
[1718020779294,0.12142325,3675.0,3674.9,2.72115]
[1718020779497,2.3237,3675.4,3674.9,2.72115]
[1718020779699,0.8,3675.0,3674.9,2.72115]
[1718020780100,0.92142325,3675.0,3674.9,2.72115]
[1718020780694,0.8,3675.0,3674.9,2.72115]
[1718020783535,2.3329,3676.2,3675.1,2.721]
[1718020783849,0.8,3675.3,3675.1,2.721]
[1718020784204,0.12149699,3675.2,3675.1,2.721]
[1718020784707,0.8,3675.3,3675.1,2.721]
[1718020785010,0.12149699,3675.2,3675.1,2.721]
[1718020785204,2.3329,3675.7,3675.1,2.721]
[1718020785442,0.92149699,3675.2,3675.1,2.721]
[1718020785641,0.8,3675.2,3675.1,2.721]
[1718020785805,0.92149699,3675.2,3675.1,2.721]
[1718020788156,0.92149699,3675.2,3674.3,8.08]
[1718020788318,0.8,3674.7,3674.3,2.72156]
[1718020788517,0.8,3674.7,3674.5,2.72145]
[1718020788724,0.1216339,3674.6,3674.5,2.72145]
[1718020790563,0.8,3674.8,3674.5,2.72145]
[1718020791059,0.12147592,3674.7,3674.5,2.72145]
[1718020791263,0.8,3674.8,3674.5,2.72145]
[1718020791775,0.8,3674.9,3674.7,2.72129]
[1718020792277,0.12131265,3674.8,3674.7,2.72129]
[1718020793945,0.8,3675.1,3674.7,2.72129]
[1718020794147,0.12131265,3675.0,3674.7,2.72129]
[1718020796434,0.8,3674.9,3674.7,2.72129]
[1718020796835,0.12133899,3674.8,3674.7,2.72129]
[1718020799069,0.8,3674.9,3674.7,2.72129]
[1718020799274,0.12133899,3674.8,3674.7,2.72129]
[1718020802080,0.12133899,3674.8,3674.4,2.72147]
[1718020802237,0.8,3674.7,3674.4,2.72147]
[1718020803638,0.12133899,3674.8,3674.7,2.72131]
[1718020804060,0.12133899,3674.8,3674.7,5.16571]
[1718020807066,0.12133899,3674.8,3674.7,2.72131]
[1718020812952,0.12133899,3674.8,3674.4,2.72148]
[1718020817592,0.12133899,3674.8,3674.5,2.72138]
[1718020817984,0.12133899,3674.8,3674.7,2.72131]
[1718020822227,0.8,3675.0,3674.7,2.72131]
[1718020822690,0.16546225,3674.9,3674.7,2.72131]
[1718020824725,0.8,3674.8,3674.7,2.72131]
[1718020824927,2.3493,3675.1,3674.7,2.72131]
[1718020825223,0.8,3674.9,3674.7,2.72131]
[1718020828634,2.3493,3675.1,3674.9,2.72115]
[1718020828958,0.8,3675.0,3674.9,2.72115]
[1718020829254,0.96546225,3675.0,3674.9,2.72115]
[1718020847003,0.96546225,3675.0,3674.7,2.7213]
[1718020850901,0.8,3675.0,3674.7,2.7213]
[1718020851596,0.16546225,3674.9,3674.7,2.7213]
[1718020854494,0.8,3675.0,3674.7,2.7213]
[1718020854723,0.8,3675.0,3674.5,0.85606671]
[1718020854724,0.8,3675.0,3674.9,2.72116]
[1718020860115,2.4766,3675.3,3674.9,2.72116]
[1718020860446,0.8,3675.0,3674.9,2.72116]
[1718020862337,5.13632,3676.0,3674.7,2.4238]
[1718020862646,2.7202,3676.2,3675.6,2.72062]
[1718020862847,0.8,3675.8,3675.6,2.72062]
[1718020863213,2.4159,3676.3,3675.8,2.72049]
[1718020863412,0.8,3676.0,3675.8,2.72049]
[1718020863642,8.1609,3675.9,3675.8,2.72049]
[1718020867142,11.40059,3675.9,3675.0,2.2737]
[1718020867344,8.1609,3675.9,3675.5,2.72069]
[1718020867651,0.8,3675.6,3675.5,2.72069]
[1718020868169,3.0613,3675.6,3675.5,2.72069]
[1718020868347,3.0613,3675.6,3675.2,2.72089]
[1718020868543,0.8,3675.3,3675.2,2.72089]
[1718020869567,0.96546225,3675.3,3675.2,2.72089]
[1718020870774,0.96546225,3675.3,3674.9,2.72112]
[1718020871076,0.8,3675.0,3674.9,2.72112]
[1718020871441,0.8,3675.0,3674.6,2.72133]
[1718020871720,0.8,3674.7,3674.6,2.72133]
[1718020872212,0.96546225,3674.7,3674.6,2.72133]
[1718020872811,0.96546225,3674.7,3674.6,5.72133]
[1718020873012,0.8,3674.7,3674.6,5.72133]
[1718020875828,0.8,3674.7,3674.6,3.0]
[1718020875988,0.8,3674.7,3674.4,3.0]
[1718020879401,0.8,3674.5,3674.0,2.72177]
[1718020879736,2.4257,3674.8,3674.1,3.0]
[1718020879737,0.8,3674.3,3674.1,3.0]
[1718020880093,0.8,3674.3,3674.2,2.72168]
[1718020880393,0.8,3674.5,3674.2,5.72168]
[1718020880598,0.8,3674.5,3674.2,2.72168]
[1718020884403,0.16546225,3674.4,3674.2,2.72168]
[1718020884609,0.8,3674.3,3674.2,2.72168]
[1718020885331,0.8,3674.3,3673.9,2.301]
[1718020885332,0.96546225,3674.3,3673.9,5.02284]
[1718020886126,0.96546225,3674.3,3674.1,2.72173]
[1718020895332,0.96546225,3674.3,3673.8,2.72191]
[1718020898354,3.45226225,3674.3,3673.8,2.72191]
[1718020898582,0.8,3674.0,3673.8,2.72191]
[1718020899102,0.16546225,3673.9,3673.8,2.72191]
[1718020899249,0.16546225,3673.9,3673.8,5.72191]
[1718020900061,0.16546225,3673.9,3673.8,2.72191]
[1718020900690,0.16546225,3673.9,3673.5,5.22212]
[1718020900983,0.16546225,3673.9,3673.6,3.0]
[1718020901189,0.8,3673.6,3673.5,5.22212]
[1718020901352,0.8,3673.8,3673.6,2.72205]
[1718020901772,0.16546225,3673.7,3673.6,2.72205]
[1718020901978,0.8,3673.8,3673.6,2.72205]
[1718020902180,0.16546225,3673.7,3673.6,2.72205]
[1718020902381,0.8,3673.8,3673.6,2.72205]
[1718020902684,0.16546225,3673.7,3673.6,2.72205]
[1718020903584,0.8,3673.8,3673.6,2.72205]
[1718020903905,0.16546225,3673.7,3673.6,2.72205]
[1718020904110,0.8,3673.8,3673.6,2.72205]
[1718020904285,0.16546225,3673.7,3673.6,2.72205]
[1718020904976,0.8,3673.8,3673.6,2.72205]
[1718020905180,0.16546225,3673.7,3673.6,2.72205]
[1718020905808,0.8,3673.8,3673.6,2.72205]
[1718020906007,0.16546225,3673.7,3673.6,2.72205]
[1718020906317,0.8,3673.8,3673.6,2.72205]
[1718020906484,0.16546225,3673.7,3673.6,2.72205]
[1718020906684,0.8,3673.8,3673.6,2.72205]
[1718020906886,0.16546225,3673.7,3673.6,2.72205]
[1718020907115,0.8,3673.8,3673.6,2.72205]
[1718020907623,0.16546225,3673.7,3673.6,2.72205]
[1718020907783,0.8,3673.8,3673.6,2.72205]
[1718020907984,0.16546225,3673.7,3673.6,2.72205]
[1718020908186,0.8,3673.8,3673.6,2.72205]
[1718020908507,0.16546225,3673.7,3673.6,2.72205]
[1718020908817,0.8,3673.8,3673.6,2.72205]
[1718020909015,0.16546225,3673.7,3673.6,2.72205]
[1718020909381,0.8,3673.8,3673.6,2.72205]
[1718020909783,0.16546225,3673.7,3673.6,2.72205]
[1718020909977,0.8,3673.8,3673.6,2.72205]
[1718020910219,0.16546225,3673.7,3673.6,2.72205]
[1718020910416,5.2084,3674.3,3673.6,2.72205]
[1718020910679,0.8,3673.7,3673.5,2.5]
[1718020911198,0.16546225,3673.6,3673.5,2.5]
[1718020922179,5.14918225,3673.6,3673.5,2.5]
[1718020922337,13.31008225,3673.6,3673.5,2.5]
[1718020922536,14.72109048,3673.6,3673.5,2.5]
[1718020924271,17.44321048,3673.6,3673.5,2.5]
[1718020924983,14.72109048,3673.6,3673.5,2.5]
[1718020933287,2.72232,3673.4,3672.7,2.72278]
[1718020933523,0.8,3672.8,3672.7,2.72278]
[1718020933881,0.96546225,3672.8,3672.7,2.72278]
[1718020934398,0.16546225,3672.8,3672.7,2.72278]
[1718020934603,0.8,3672.8,3672.7,2.72278]
[1718020934812,0.96546225,3672.8,3672.7,2.72278]
[1718020943252,0.16546225,3672.8,3672.7,2.72278]
[1718020943449,0.16546225,3672.8,3672.7,5.17258]
[1718020943856,0.8,3673.0,3672.9,2.72264]
[1718020944223,0.96546225,3673.0,3672.9,2.72264]
[1718020944529,0.16546225,3673.0,3672.9,2.72264]
[1718020944743,0.96546225,3673.0,3672.9,2.72264]
[1718020944954,0.8,3673.0,3672.9,2.72264]
[1718020945246,0.96546225,3673.0,3672.9,2.72264]
[1718020950008,0.16546225,3673.0,3672.9,2.72264]
[1718020950283,0.8,3673.0,3672.9,2.72264]
[1718020950489,0.96546225,3673.0,3672.9,2.72264]
[1718020958988,0.16546225,3673.0,3672.9,2.72264]
[1718020959170,0.16546225,3673.0,3672.9,7.84638]
[1718020959372,8.1609,3673.3,3673.2,2.72242]
[1718020959814,8.32636225,3673.3,3673.2,2.72242]
[1718020977135,9.23899848,3673.3,3673.2,2.72242]
[1718020977478,9.23899848,3673.3,3672.9,3.0]
[1718020977479,9.23899848,3673.3,3672.9,5.72257]
[1718020977678,0.8,3673.1,3672.9,2.72257]
[1718020978092,0.16546225,3673.0,3672.9,2.72257]
[1718020982524,0.16546225,3673.0,3672.6,2.7228]
[1718020982694,0.16546225,3673.0,3672.7,3.0]
[1718020983022,0.8,3672.8,3672.7,3.0]
[1718020983390,0.96546225,3672.8,3672.7,3.0]
[1718020985421,0.96546225,3672.8,3672.6,2.7228]
[1718020989728,3.46466225,3672.8,3672.6,2.7228]
[1718020992190,0.96546225,3672.8,3672.6,2.7228]
[1718020995330,1.57506848,3672.8,3671.9,10.00331]
[1718020995494,1.57506848,3672.8,3671.9,7.28]
[1718020995495,0.8,3672.0,3671.9,7.28]
[1718020995690,0.8,3672.0,3671.8,2.81566469]
[1718020995998,0.16546225,3671.9,3671.8,2.81566469]
[1718020996391,2.72309,3672.3,3671.8,2.81566469]
[1718020996596,0.8,3672.1,3671.8,2.81566469]
[1718020997029,2.72293,3672.6,3671.8,2.81566469]
[1718020997331,0.8,3672.2,3671.8,2.81566469]
[1718020998031,0.16546225,3672.1,3671.8,2.81566469]
[1718020999534,0.8,3672.0,3671.8,2.81566469]
[1718021000195,0.16546225,3671.9,3671.8,2.81566469]
[1718021000399,0.16546225,3671.9,3671.8,5.81566469]
[1718021000837,0.8,3672.0,3671.8,5.81566469]
[1718021001333,0.16546225,3671.9,3671.8,5.81566469]
[1718021001740,0.16546225,3671.9,3671.8,0.09221469]
[1718021001741,2.4611,3671.9,3671.8,0.09221469]
[1718021001905,2.78721,3671.9,3671.8,0.09221469]
[1718021002104,2.95267225,3671.9,3671.8,0.09221469]
[1718021005426,11.11357225,3671.9,3671.8,0.09221469]
[1718021011663,13.83699225,3671.9,3671.3,10.0038]
[1718021012428,13.83699225,3671.9,3671.3,2.7238]
[1718021012629,1.46369923,3671.8,3671.3,2.7238]
[1718021012878,8.1609,3671.7,3671.3,2.7238]
[1718021013164,0.16546225,3671.6,3671.3,2.7238]
[1718021014063,0.16546225,3671.6,3671.2,2.5]
[1718021014366,2.72369,3671.5,3671.2,2.5]
[1718021014573,12.43940523,3671.4,3671.2,2.5]
[1718021014799,10.5344,3671.4,3671.2,2.5]
[1718021014942,0.16546225,3671.3,3671.2,2.5]
[1718021015140,8.32636225,3671.3,3671.2,2.5]
[1718021015451,11.05019225,3671.3,3671.2,2.5]
[1718021015650,12.47256148,3671.3,3671.2,2.5]
[1718021019275,16.22796148,3671.3,3671.2,2.5]
[1718021020887,16.22796148,3671.3,3671.2,2.5]
[1718021025686,12.47256148,3671.3,3671.2,2.5]
[1718021025895,11.05019225,3671.3,3671.2,2.5]
[1718021026334,8.32636225,3671.3,3671.2,2.5]
[1718021041951,8.32636225,3671.3,3671.0,3.52404]
[1718021042615,2.4512,3671.2,3670.7,2.72422]
[1718021042821,3.80132723,3671.2,3670.8,0.8]
[1718021043022,3.80132723,3671.2,3670.7,2.72422]
[1718021043229,0.16546225,3671.1,3670.7,3.52422]
[1718021043418,8.32636225,3671.1,3670.7,0.8]
[1718021044245,11.05034225,3671.1,3670.7,0.8]
[1718021045938,8.32636225,3671.1,3670.7,0.8]
[1718021048065,8.32636225,3671.1,3670.6,2.72434]
[1718021048280,8.32636225,3671.1,3670.4,0.09224986]
[1718021048281,8.32636225,3671.1,3671.0,3.0666]
[1718021048761,8.32636225,3671.1,3671.0,3.0406]
[1718021048920,8.32636225,3671.1,3671.0,3.0666]
[1718021049459,8.1609,3671.1,3671.0,3.0666]
[1718021049941,8.32636225,3671.1,3671.0,3.0666]
[1718021059930,8.32636225,3671.1,3671.0,6.0666]
[1718021060258,8.1609,3671.1,3671.0,6.0666]
[1718021060458,8.32636225,3671.1,3671.0,5.2666]
[1718021061068,8.32636225,3671.1,3671.0,6.0666]
[1718021062875,8.32636225,3671.1,3671.0,3.0]
[1718021063036,8.32636225,3671.1,3671.0,2.72405]
[1718021063376,9.15899848,3671.1,3671.0,2.72405]
[1718021063678,9.15899848,3671.1,3671.0,3.52405]
[1718021063865,8.32636225,3671.1,3671.0,3.52405]
[1718021065671,8.32636225,3671.1,3671.0,2.72405]
[1718021066178,8.32636225,3671.1,3671.0,3.52405]
[1718021068284,8.32636225,3671.1,3671.0,2.72405]
[1718021068576,8.32636225,3671.1,3671.0,3.52405]
[1718021071600,8.1609,3671.1,3671.0,3.52405]
[1718021071790,8.32636225,3671.1,3671.0,3.52405]
[1718021072869,8.32636225,3671.1,3671.0,5.22265]
[1718021073179,8.1609,3671.1,3671.0,5.22265]
[1718021073494,8.32636225,3671.1,3671.0,5.22265]
[1718021074007,8.32636225,3671.1,3671.0,10.67075]
[1718021074146,8.32636225,3671.1,3671.0,14.52681671]
[1718021074147,0.16546225,3671.1,3671.0,14.52681671]
[1718021074346,8.00488,3672.9,3672.0,2.7233]
[1718021074572,0.96595025,3672.8,3672.0,2.7233]
[1718021076174,2.72282,3672.7,3672.0,2.7233]
[1718021076361,2.72297,3672.5,3671.7,2.72348]
[1718021076680,0.16546225,3672.4,3671.7,2.72348]
[1718021079264,5.20481,3672.3,3671.7,2.72348]
[1718021079493,0.53702723,3672.2,3671.7,2.72348]
[1718021079694,8.70692723,3672.2,3671.7,2.72348]
[1718021079998,0.16546225,3672.1,3671.7,2.72348]
[1718021080603,8.1699,3672.0,3671.7,2.72348]
[1718021080958,0.16546225,3671.9,3671.7,2.72348]
[1718021081164,0.83353622,3671.8,3671.7,2.72348]
[1718021081595,0.99899847,3671.8,3671.7,2.72348]
[1718021086801,9.16889847,3671.8,3671.7,2.72348]
[1718021088609,9.16889847,3671.8,3671.4,2.72369]
[1718021089095,11.51949847,3671.8,3671.4,2.72369]
[1718021090506,1.15194985,3671.7,3671.4,2.72369]
[1718021091073,0.16546225,3671.6,3671.4,2.72369]
[1718021091288,0.15462041,3671.6,3671.4,2.72369]
[1718021091808,0.16496944,3671.5,3671.4,2.72369]
[1718021092115,10.5205,3671.8,3671.4,2.72369]
[1718021092314,0.16496944,3671.5,3671.4,2.72369]
[1718021092491,10.5205,3671.8,3671.4,2.72369]
[1718021092691,0.16496944,3671.5,3671.4,2.72369]
[1718021092891,10.5205,3671.8,3671.4,2.72369]
[1718021093390,0.16496944,3671.7,3671.4,2.72369]
[1718021093594,10.5205,3671.8,3671.6,2.72357]
[1718021093785,0.16496944,3671.7,3671.6,2.72357]
[1718021093982,10.5205,3671.8,3671.6,2.72357]
[1718021094183,0.16496944,3671.7,3671.6,2.72357]
[1718021094380,8.1699,3671.8,3671.6,2.72357]
[1718021094626,0.16496944,3671.7,3671.6,2.72357]
[1718021094908,8.1699,3671.8,3671.6,2.72357]
[1718021095083,0.16496944,3671.7,3671.6,2.72357]
[1718021095535,8.1699,3671.7,3671.6,2.72357]
[1718021095697,8.33486944,3671.7,3671.6,2.72357]
[1718021095897,8.33486944,3671.7,3671.6,3.52457]
[1718021101228,8.33486944,3671.7,3671.3,2.72377]
[1718021101431,8.33486944,3671.7,3671.5,0.801]
[1718021102424,8.33486944,3671.7,3671.5,3.52467]
[1718021103643,8.1699,3671.7,3671.5,3.52467]
[1718021103938,0.16496944,3671.6,3671.5,3.52467]
[1718021110858,0.13896944,3671.6,3671.5,3.52467]
[1718021114458,0.13896944,3671.6,3671.2,5.08654]
[1718021114619,8.1699,3671.7,3671.5,0.801]
[1718021114957,0.16378763,3671.6,3671.5,0.801]
[1718021115460,8.1699,3671.7,3671.6,2.7236]
[1718021115645,8.33368763,3671.7,3671.6,2.7236]
[1718021125683,8.33368763,3671.7,3671.6,3.5246]
[1718021127084,8.33368763,3671.7,3671.4,2.72375]
[1718021127244,11.57355639,3671.7,3671.4,3.52475]
[1718021128679,11.57355639,3671.7,3671.5,0.801]
[1718021131757,11.64313835,3671.7,3671.5,0.801]
[1718021133784,14.36666835,3671.7,3671.1,2.7239]
[1718021133954,14.36666835,3671.7,3671.0,0.85606671]
[1718021134153,14.36666835,3671.7,3670.9,2.414]
[1718021134154,14.36666835,3671.7,3671.2,0.801]
[1718021134357,1.26318769,3671.6,3671.2,0.801]
[1718021134768,2.72368,3671.5,3670.8,10.00413]
[1718021136990,2.4205,3671.2,3671.0,0.801]
[1718021137285,0.23336959,3671.1,3671.0,0.801]
[1718021137490,0.23336959,3671.1,3670.5,10.86041671]
[1718021137491,0.23336959,3671.1,3670.8,0.801]
[1718021137872,2.95735959,3671.1,3670.5,10.00435]
[1718021138382,2.95735959,3671.1,3670.9,0.801]
[1718021140111,2.95735959,3671.1,3670.5,2.72435]
[1718021140263,2.95735959,3671.1,3670.8,0.801]
[1718021143803,4.31213555,3671.1,3670.5,2.72435]
[1718021144097,4.31213555,3671.1,3670.7,0.801]
[1718021145898,4.31213555,3671.1,3670.5,2.72435]
[1718021145899,4.31213555,3671.1,3670.9,0.801]
[1718021146075,2.95735959,3671.1,3670.9,0.801]
[1718021148378,2.95735959,3671.1,3670.5,2.72435]
[1718021148586,2.95735959,3671.1,3670.8,0.801]
[1718021148987,2.95735959,3671.1,3670.5,2.72435]
[1718021149511,8.1699,3671.0,3670.8,0.801]
[1718021149687,8.1699,3671.0,3670.4,0.09224986]
[1718021149688,2.72413,3670.9,3670.4,0.09224986]
[1718021149867,2.72413,3670.9,3670.6,0.801]
[1718021150068,0.23336959,3670.8,3670.4,0.09224986]
[1718021150302,8.1699,3670.7,3670.4,0.09224986]
[1718021150466,8.1699,3670.7,3670.5,0.801]
[1718021150862,2.2857,3670.5,3670.1,2.03615346]
[1718021151099,8.1699,3670.4,3670.1,2.03615346]
[1718021151426,0.23336959,3670.3,3670.1,2.03615346]
[1718021152105,2.95796959,3670.3,3670.1,2.03615346]
[1718021152265,0.23336959,3670.3,3670.1,2.03615346]
[1718021160523,0.23336959,3670.3,3670.2,0.801]
[1718021160887,0.23336959,3670.3,3670.1,2.03615346]
[1718021161086,0.23336959,3670.3,3670.1,2.83715346]
[1718021161607,0.23336959,3670.3,3670.1,2.03615346]
[1718021161784,3.64994755,3670.3,3670.1,2.03615346]
[1718021162632,8.1699,3670.2,3670.1,2.03615346]
[1718021163122,8.40320053,3670.2,3670.1,2.03615346]
[1718021164418,11.12784053,3670.2,3670.1,2.03615346]
[1718021190310,8.40320053,3670.2,3670.1,2.03615346]
[1718021195441,12.35188838,3670.2,3670.1,2.03615346]
[1718021196149,8.40320053,3670.2,3670.1,2.03615346]
[1718021201367,11.12784053,3670.2,3670.1,2.03615346]
[1718021201765,13.48364053,3670.2,3670.1,2.03615346]
[1718021201965,14.03364053,3670.2,3670.1,2.03615346]
[1718021203445,19.48292053,3670.2,3670.1,2.03615346]
[1718021203650,24.78376758,3670.2,3670.1,2.03615346]
[1718021205341,27.64776758,3670.2,3670.1,2.03615346]